{"text_format":"2","workbook":"xlsx","n_sheets":20,"sheets":["Übersicht","Safeguard I","Safeguard II","Diarect bl","Toto","Roche","Spenden","cryoPoc","DFG mtor","Por","Zellisolator","Streck","DFG Papier","DFG PmP","Bier","BMBF CTC","GenXPro","DFG DynWet","DFG Kommma","Zim Microcoat 2"],"not_rendered":{"charts":0,"images":0,"macros":0,"external_links":0,"defined_names":0,"comments":0,"pivot_tables":0},"unopened":[],"bounds":{"document_bytes":16777216,"sheet_cells":100000,"run_cost":"one","rows_first":2000,"rows_last":500,"rows_between":2000,"halvings":0,"cell_chars":16384,"cell_head_chars":4096},"cells_cut":0,"cells_raw":0,"read":"whole","date_system":"1900"}

{"sheet":"Übersicht","index":0,"n_rows":54,"n_cols":7,"rows_kept":54,"cut":false,"hidden":false,"merged":[]}
["Nr. ","Projekt","Laufzeit","BA","Budget","Ausgaben","Rest"]
[]
[1,"Safegurard I (neu)","01.08.2019-31.07.2020",1100000102,5000,{"$f":"'Safeguard I'!D4","v":0},{"$f":"E3-F3","v":5000}]
[]
[]
[{"$f":"A3+1","v":2},"Safeguard II","01.02.2020-31.01.2021",1100068701,9600,{"$f":"'Safeguard II'!D4","v":0},{"$f":"E6-F6","v":9600}]
[]
[]
[{"$f":"A6+1","v":3},"Diarect bilateral",null,1085552101,0,{"$f":"'Diarect bl'!D4","v":0},{"$f":"E9-F9","v":0}]
[]
[]
[{"$f":"A9+1","v":4},"Sammelkonto Toto","- 31.03.2028",2047193601,0,{"$f":"Toto!D4","v":0},{"$f":"E12-F12","v":0}]
[]
[]
[{"$f":"A12+1","v":5},"Roche","bis 31.03.2020",1100039301,2000,{"$f":"Roche!D4","v":281.69500000000005},{"$f":"E15-F15","v":1718.3049999999998}]
[]
[]
[{"$f":"A15+1","v":6},"Spendenkonto",null,"2100037801-SP",0,{"$f":"Spenden!D4","v":0},{"$f":"E18-F18","v":0}]
[]
[]
[{"$f":"A18+1","v":7},"DFG Analyseplatform","- 31.03.2020",2100090701,0,{"$f":"'DFG mtor'!D4","v":0},{"$f":"E21-F21","v":0}]
[]
[]
[{"$f":"A21+1","v":8},"Pors Konto",null,2100092201,5000,{"$f":"'DFG mtor'!D4","v":0},{"$f":"E24-F24","v":5000}]
[]
[]
[{"$f":"A24+1","v":9},"BMBF Zellisolator","01.09.2018 -  31.08.2021",2100227801,11000,{"$f":"Zellisolator!D4","v":1856.2},{"$f":"E27-F27","v":9143.7999999999993}]
[]
[]
[{"$f":"A27+1","v":10},"Streck","bis 30.06.2025",1100052801,2000,{"$f":"Streck!D4","v":0},{"$f":"E30-F30","v":2000}]
[]
[]
[{"$f":"A30+1","v":11},"DFG PakPapier","01.08.2018 - 31.01.2022",2100237301,15000,{"$f":"'DFG Papier'!D4","v":202.29999999999998},{"$f":"E33-F33","v":14797.7}]
[]
[]
[{"$f":"A33+1","v":12},"DFG PmP","01.12.2018-30.11.2021",2100246401,16000,{"$f":"'DFG PmP'!D4","v":0},{"$f":"E36-F36","v":16000}]
[]
[]
[{"$f":"A36+1","v":13},"IGF Bier","01.11.2018-31.10.2020",2100236801,25000,{"$f":"Bier!D4","v":1587.0167999999999},{"$f":"E39-F39","v":23412.983199999999}]
[]
[]
[{"$f":"A39+1","v":14},"BMBF CTC","01.07.2019-30.06.2022",2100288001,16000,{"$f":"'BMBF CTC'!D4","v":1507.7108000000001},{"$f":"E42-F42","v":14492.289199999999}]
[]
[]
[{"$f":"A42+1","v":15},"GenXPro","01.05.2019-30.04.2022",2100276501,5000,{"$f":"GenXPro!D4","v":199.465},{"$f":"E45-F45","v":4800.5349999999999}]
[]
[]
[{"$f":"A45+1","v":16},"DFG Dynamic Wetting","01.10.2019-30.09.2022",2100283401,2000,{"$f":"'DFG DynWet'!D4","v":0},{"$f":"E48-F48","v":2000}]
[]
[]
[{"$f":"A48+1","v":17},"DFG Kommma","01.11.2019-30.10.2022",2100295201,20000,{"$f":"'DFG Kommma'!D4","v":0},{"$f":"E51-F51","v":20000}]
[]
[]
[{"$f":"A51+1","v":18},"ZIM Microcoat II","01.10.2019-30.09.2022",2100302101,5000,{"$f":"'Zim Microcoat 2'!D4","v":1306.8552},{"$f":"E54-F54","v":3693.1448}]

{"sheet":"Safeguard I","index":1,"n_rows":16,"n_cols":5,"rows_kept":16,"cut":false,"hidden":false,"merged":[]}
[1,null,null,"1. Halbjahr","2. Halbjahr"]
[{"$f":"IF(ISBLANK(INDIRECT(ADDRESS(A1*3,2,TRUE,TRUE,\"Übersicht\"))),\"\",INDIRECT(ADDRESS(A1*3,2,TRUE,TRUE,\"Übersicht\")))","v":"Safegurard I (neu)"},null,"Buchungsabschnitt",{"$f":"IF(ISBLANK(INDIRECT(ADDRESS(A1*3,4,TRUE,TRUE,\"Übersicht\"))),\"\",INDIRECT(ADDRESS(A1*3,4,TRUE,TRUE,\"Übersicht\")))","v":1100000102},1100000102]
[{"$f":"IF(ISBLANK(INDIRECT(ADDRESS(A1*3,3,TRUE,TRUE,\"Übersicht\"))),\"\",INDIRECT(ADDRESS(A1*3,3,TRUE,TRUE,\"Übersicht\")))","v":"01.08.2019-31.07.2020"},null,"Budget",{"$f":"IF(ISBLANK(INDIRECT(ADDRESS(A1*3,5,TRUE,TRUE,\"Übersicht\"))),\"\",INDIRECT(ADDRESS(A1*3,5,TRUE,TRUE,\"Übersicht\")))","v":5000},{"$f":"D3","v":5000}]
[null,null,"Ausgaben",{"$f":"SUM(D9:D95)","v":0},{"$f":"SUM(E9:E100)","v":1708.7823999999998}]
[null,null,"Rest",{"$f":"D3-D4","v":5000},{"$f":"E3-E4","v":3291.2175999999999}]
[]
[]
["Rechnungsdatum","Bestellartikel","Firma","Kosten in EUR","Kosten in EUR"]
["2020-01-21","Natriumperiodat","VWR",null,144.69999999999999]
["2020-01-25","Versandkosten","Scienion",null,33.94]
["2020-02-11","96 Well MTP schwarz","Greiner BioOne",null,515.89]
["2020-02-26","Cryoboxen","Carl Roth",null,{"$f":"73.26*1.19","v":87.179400000000001}]
["2020-03-04","Braunglasflaschen","Carl Roth",null,181.06]
["2020-03-04","Sterillium","VWR",null,126.38]
["2020-03-10","IgG","VWR",null,{"$f":"415.7*1.19","v":494.68299999999999}]
["2020-03-10","Cy5-amin","Lumiprobe",null,124.95]

{"sheet":"Safeguard II","index":2,"n_rows":8,"n_cols":4,"rows_kept":8,"cut":false,"hidden":false,"merged":[]}
[2]
[{"$f":"IF(ISBLANK(INDIRECT(ADDRESS(A1*3,2,TRUE,TRUE,\"Übersicht\"))),\"\",INDIRECT(ADDRESS(A1*3,2,TRUE,TRUE,\"Übersicht\")))","v":"Safeguard II"},null,"Buchungsabschnitt",{"$f":"IF(ISBLANK(INDIRECT(ADDRESS(A1*3,4,TRUE,TRUE,\"Übersicht\"))),\"\",INDIRECT(ADDRESS(A1*3,4,TRUE,TRUE,\"Übersicht\")))","v":1100068701}]
[{"$f":"IF(ISBLANK(INDIRECT(ADDRESS(A1*3,3,TRUE,TRUE,\"Übersicht\"))),\"\",INDIRECT(ADDRESS(A1*3,3,TRUE,TRUE,\"Übersicht\")))","v":"01.02.2020-31.01.2021"},null,"Budget",8000]
[null,null,"Ausgaben",{"$f":"SUM(D9:D50)","v":0}]
[null,null,"Rest",{"$f":"D3-D4","v":8000}]
[]
[]
["Rechnungsdatum","Bestellartikel","Firma","Kosten in EUR"]

{"sheet":"Diarect bl","index":3,"n_rows":8,"n_cols":4,"rows_kept":8,"cut":false,"hidden":false,"merged":[]}
[3]
[{"$f":"IF(ISBLANK(INDIRECT(ADDRESS(A1*3,2,TRUE,TRUE,\"Übersicht\"))),\"\",INDIRECT(ADDRESS(A1*3,2,TRUE,TRUE,\"Übersicht\")))","v":"Diarect bilateral"},null,"Buchungsabschnitt",{"$f":"IF(ISBLANK(INDIRECT(ADDRESS(A1*3,4,TRUE,TRUE,\"Übersicht\"))),\"\",INDIRECT(ADDRESS(A1*3,4,TRUE,TRUE,\"Übersicht\")))","v":1085552101}]
[{"$f":"IF(ISBLANK(INDIRECT(ADDRESS(A1*3,3,TRUE,TRUE,\"Übersicht\"))),\"\",INDIRECT(ADDRESS(A1*3,3,TRUE,TRUE,\"Übersicht\")))","v":""},null,"Budget",{"$f":"IF(ISBLANK(INDIRECT(ADDRESS(A1*3,5,TRUE,TRUE,\"Übersicht\"))),\"\",INDIRECT(ADDRESS(A1*3,5,TRUE,TRUE,\"Übersicht\")))","v":0}]
[null,null,"Ausgaben",{"$f":"SUM(D9:D50)","v":0}]
[null,null,"Rest",{"$f":"D3-D4","v":0}]
[]
[]
["Rechnungsdatum","Bestellartikel","Firma","Kosten in EUR"]

{"sheet":"Toto","index":4,"n_rows":8,"n_cols":4,"rows_kept":8,"cut":false,"hidden":false,"merged":[]}
[4]
[{"$f":"IF(ISBLANK(INDIRECT(ADDRESS(A1*3,2,TRUE,TRUE,\"Übersicht\"))),\"\",INDIRECT(ADDRESS(A1*3,2,TRUE,TRUE,\"Übersicht\")))","v":"Sammelkonto Toto"},null,"Buchungsabschnitt",{"$f":"IF(ISBLANK(INDIRECT(ADDRESS(A1*3,4,TRUE,TRUE,\"Übersicht\"))),\"\",INDIRECT(ADDRESS(A1*3,4,TRUE,TRUE,\"Übersicht\")))","v":2047193601}]
[{"$f":"IF(ISBLANK(INDIRECT(ADDRESS(A1*3,3,TRUE,TRUE,\"Übersicht\"))),\"\",INDIRECT(ADDRESS(A1*3,3,TRUE,TRUE,\"Übersicht\")))","v":"- 31.03.2028"},null,"Budget",{"$f":"IF(ISBLANK(INDIRECT(ADDRESS(A1*3,5,TRUE,TRUE,\"Übersicht\"))),\"\",INDIRECT(ADDRESS(A1*3,5,TRUE,TRUE,\"Übersicht\")))","v":0}]
[null,null,"Ausgaben",{"$f":"SUM(D9:D50)","v":0}]
[null,null,"Rest",{"$f":"D3-D4","v":0}]
[]
[]
["Rechnungsdatum","Bestellartikel","Firma","Kosten in EUR"]

{"sheet":"Roche","index":5,"n_rows":12,"n_cols":4,"rows_kept":12,"cut":false,"hidden":false,"merged":[]}
[5]
[{"$f":"IF(ISBLANK(INDIRECT(ADDRESS(A1*3,2,TRUE,TRUE,\"Übersicht\"))),\"\",INDIRECT(ADDRESS(A1*3,2,TRUE,TRUE,\"Übersicht\")))","v":"Roche"},null,"Buchungsabschnitt",{"$f":"IF(ISBLANK(INDIRECT(ADDRESS(A1*3,4,TRUE,TRUE,\"Übersicht\"))),\"\",INDIRECT(ADDRESS(A1*3,4,TRUE,TRUE,\"Übersicht\")))","v":1100039301}]
[{"$f":"IF(ISBLANK(INDIRECT(ADDRESS(A1*3,3,TRUE,TRUE,\"Übersicht\"))),\"\",INDIRECT(ADDRESS(A1*3,3,TRUE,TRUE,\"Übersicht\")))","v":"bis 31.03.2020"},null,"Budget",{"$f":"IF(ISBLANK(INDIRECT(ADDRESS(A1*3,5,TRUE,TRUE,\"Übersicht\"))),\"\",INDIRECT(ADDRESS(A1*3,5,TRUE,TRUE,\"Übersicht\")))","v":2000}]
[null,null,"Ausgaben",{"$f":"SUM(D9:D50)","v":281.69500000000005}]
[null,null,"Rest",{"$f":"D3-D4","v":1718.3049999999998}]
[]
[]
["Rechnungsdatum","Bestellartikel","Firma","Kosten in EUR"]
["2020-01-20","Plurstrainer Siebe","Hiss Diagnostics",141.61000000000001]
["2020-02-05","Plurstrainer Siebe","Hiss Diagnostics",{"$f":"49.5*1.19","v":58.904999999999994}]
["2020-02-11","Versand an Roche","TNT",40.9]
["2020-03-02","Versand an Roche","TNT",40.28]

{"sheet":"Spenden","index":6,"n_rows":8,"n_cols":4,"rows_kept":8,"cut":false,"hidden":false,"merged":[]}
[6]
[{"$f":"IF(ISBLANK(INDIRECT(ADDRESS(A1*3,2,TRUE,TRUE,\"Übersicht\"))),\"\",INDIRECT(ADDRESS(A1*3,2,TRUE,TRUE,\"Übersicht\")))","v":"Spendenkonto"},null,"Buchungsabschnitt",{"$f":"IF(ISBLANK(INDIRECT(ADDRESS(A1*3,4,TRUE,TRUE,\"Übersicht\"))),\"\",INDIRECT(ADDRESS(A1*3,4,TRUE,TRUE,\"Übersicht\")))","v":"2100037801-SP"}]
[{"$f":"IF(ISBLANK(INDIRECT(ADDRESS(A1*3,3,TRUE,TRUE,\"Übersicht\"))),\"\",INDIRECT(ADDRESS(A1*3,3,TRUE,TRUE,\"Übersicht\")))","v":""},null,"Budget",{"$f":"IF(ISBLANK(INDIRECT(ADDRESS(A1*3,5,TRUE,TRUE,\"Übersicht\"))),\"\",INDIRECT(ADDRESS(A1*3,5,TRUE,TRUE,\"Übersicht\")))","v":0}]
[null,null,"Ausgaben",{"$f":"SUM(D9:D50)","v":0}]
[null,null,"Rest",{"$f":"D3-D4","v":0}]
[]
[]
["Rechnungsdatum","Bestellartikel","Firma","Kosten in EUR"]

{"sheet":"cryoPoc","index":7,"n_rows":8,"n_cols":4,"rows_kept":8,"cut":false,"hidden":false,"merged":[]}
[7]
[{"$f":"IF(ISBLANK(INDIRECT(ADDRESS(A1*3,2,TRUE,TRUE,\"Übersicht\"))),\"\",INDIRECT(ADDRESS(A1*3,2,TRUE,TRUE,\"Übersicht\")))","v":"DFG Analyseplatform"},null,"Buchungsabschnitt",{"$f":"IF(ISBLANK(INDIRECT(ADDRESS(A1*3,4,TRUE,TRUE,\"Übersicht\"))),\"\",INDIRECT(ADDRESS(A1*3,4,TRUE,TRUE,\"Übersicht\")))","v":2100090701}]
[{"$f":"IF(ISBLANK(INDIRECT(ADDRESS(A1*3,3,TRUE,TRUE,\"Übersicht\"))),\"\",INDIRECT(ADDRESS(A1*3,3,TRUE,TRUE,\"Übersicht\")))","v":"- 31.03.2020"},null,"Budget",{"$f":"IF(ISBLANK(INDIRECT(ADDRESS(A1*3,5,TRUE,TRUE,\"Übersicht\"))),\"\",INDIRECT(ADDRESS(A1*3,5,TRUE,TRUE,\"Übersicht\")))","v":0}]
[null,null,"Ausgaben",{"$f":"SUM(D9:D49)","v":0}]
[null,null,"Rest",{"$f":"D3-D4","v":0}]
[]
[]
["Rechnungsdatum","Bestellartikel","Firma","Kosten in EUR"]

{"sheet":"DFG mtor","index":8,"n_rows":8,"n_cols":4,"rows_kept":8,"cut":false,"hidden":false,"merged":[]}
[7]
[{"$f":"IF(ISBLANK(INDIRECT(ADDRESS(A1*3,2,TRUE,TRUE,\"Übersicht\"))),\"\",INDIRECT(ADDRESS(A1*3,2,TRUE,TRUE,\"Übersicht\")))","v":"DFG Analyseplatform"},null,"Buchungsabschnitt",{"$f":"IF(ISBLANK(INDIRECT(ADDRESS(A1*3,4,TRUE,TRUE,\"Übersicht\"))),\"\",INDIRECT(ADDRESS(A1*3,4,TRUE,TRUE,\"Übersicht\")))","v":2100090701}]
[{"$f":"IF(ISBLANK(INDIRECT(ADDRESS(A1*3,3,TRUE,TRUE,\"Übersicht\"))),\"\",INDIRECT(ADDRESS(A1*3,3,TRUE,TRUE,\"Übersicht\")))","v":"- 31.03.2020"},null,"Budget",{"$f":"IF(ISBLANK(INDIRECT(ADDRESS(A1*3,5,TRUE,TRUE,\"Übersicht\"))),\"\",INDIRECT(ADDRESS(A1*3,5,TRUE,TRUE,\"Übersicht\")))","v":0}]
[null,null,"Ausgaben",{"$f":"SUM(D9:D48)","v":0}]
[null,null,"Rest",{"$f":"D3-D4","v":0}]
[]
[]
["Rechnungsdatum","Bestellartikel","Firma","Kosten in EUR"]

{"sheet":"Por","index":9,"n_rows":8,"n_cols":4,"rows_kept":8,"cut":false,"hidden":false,"merged":[]}
[8]
[{"$f":"IF(ISBLANK(INDIRECT(ADDRESS(A1*3,2,TRUE,TRUE,\"Übersicht\"))),\"\",INDIRECT(ADDRESS(A1*3,2,TRUE,TRUE,\"Übersicht\")))","v":"Pors Konto"},null,"Buchungsabschnitt",{"$f":"IF(ISBLANK(INDIRECT(ADDRESS(A1*3,4,TRUE,TRUE,\"Übersicht\"))),\"\",INDIRECT(ADDRESS(A1*3,4,TRUE,TRUE,\"Übersicht\")))","v":2100092201}]
[{"$f":"IF(ISBLANK(INDIRECT(ADDRESS(A1*3,3,TRUE,TRUE,\"Übersicht\"))),\"\",INDIRECT(ADDRESS(A1*3,3,TRUE,TRUE,\"Übersicht\")))","v":""},null,"Budget",{"$f":"IF(ISBLANK(INDIRECT(ADDRESS(A1*3,5,TRUE,TRUE,\"Übersicht\"))),\"\",INDIRECT(ADDRESS(A1*3,5,TRUE,TRUE,\"Übersicht\")))","v":5000}]
[null,null,"Ausgaben",{"$f":"SUM(D9:D50)","v":0}]
[null,null,"Rest",{"$f":"D3-D4","v":5000}]
[]
[]
["Rechnungsdatum","Bestellartikel","Firma","Kosten in EUR"]

{"sheet":"Zellisolator","index":10,"n_rows":10,"n_cols":4,"rows_kept":10,"cut":false,"hidden":false,"merged":[]}
[9]
[{"$f":"IF(ISBLANK(INDIRECT(ADDRESS(A1*3,2,TRUE,TRUE,\"Übersicht\"))),\"\",INDIRECT(ADDRESS(A1*3,2,TRUE,TRUE,\"Übersicht\")))","v":"BMBF Zellisolator"},null,"Buchungsabschnitt",{"$f":"IF(ISBLANK(INDIRECT(ADDRESS(A1*3,4,TRUE,TRUE,\"Übersicht\"))),\"\",INDIRECT(ADDRESS(A1*3,4,TRUE,TRUE,\"Übersicht\")))","v":2100227801}]
[{"$f":"IF(ISBLANK(INDIRECT(ADDRESS(A1*3,3,TRUE,TRUE,\"Übersicht\"))),\"\",INDIRECT(ADDRESS(A1*3,3,TRUE,TRUE,\"Übersicht\")))","v":"01.09.2018 -  31.08.2021"},null,"Budget",{"$f":"IF(ISBLANK(INDIRECT(ADDRESS(A1*3,5,TRUE,TRUE,\"Übersicht\"))),\"\",INDIRECT(ADDRESS(A1*3,5,TRUE,TRUE,\"Übersicht\")))","v":11000}]
[null,null,"Ausgaben",{"$f":"SUM(D9:D50)","v":1856.2}]
[null,null,"Rest",{"$f":"D3-D4","v":9143.7999999999993}]
[]
[]
["Rechnungsdatum","Bestellartikel","Firma","Kosten in EUR"]
["2020-01-15","Serum/EDTA","Uniklinik Freiburg",95]
["2020-01-27","Alexa-Markiertes Peptid","PSL GmbH",1761.2]

{"sheet":"Streck","index":11,"n_rows":8,"n_cols":4,"rows_kept":8,"cut":false,"hidden":false,"merged":[]}
[10]
[{"$f":"IF(ISBLANK(INDIRECT(ADDRESS(A1*3,2,TRUE,TRUE,\"Übersicht\"))),\"\",INDIRECT(ADDRESS(A1*3,2,TRUE,TRUE,\"Übersicht\")))","v":"Streck"},null,"Buchungsabschnitt",{"$f":"IF(ISBLANK(INDIRECT(ADDRESS(A1*3,4,TRUE,TRUE,\"Übersicht\"))),\"\",INDIRECT(ADDRESS(A1*3,4,TRUE,TRUE,\"Übersicht\")))","v":1100052801}]
[{"$f":"IF(ISBLANK(INDIRECT(ADDRESS(A1*3,3,TRUE,TRUE,\"Übersicht\"))),\"\",INDIRECT(ADDRESS(A1*3,3,TRUE,TRUE,\"Übersicht\")))","v":"bis 30.06.2025"},null,"Budget",{"$f":"IF(ISBLANK(INDIRECT(ADDRESS(A1*3,5,TRUE,TRUE,\"Übersicht\"))),\"\",INDIRECT(ADDRESS(A1*3,5,TRUE,TRUE,\"Übersicht\")))","v":2000}]
[null,null,"Ausgaben",{"$f":"SUM(D9:D50)","v":0}]
[null,null,"Rest",{"$f":"D3-D4","v":2000}]
[]
[]
["Rechnungsdatum","Bestellartikel","Firma","Kosten in EUR"]

{"sheet":"DFG Papier","index":12,"n_rows":9,"n_cols":4,"rows_kept":9,"cut":false,"hidden":false,"merged":[]}
[11]
[{"$f":"IF(ISBLANK(INDIRECT(ADDRESS(A1*3,2,TRUE,TRUE,\"Übersicht\"))),\"\",INDIRECT(ADDRESS(A1*3,2,TRUE,TRUE,\"Übersicht\")))","v":"DFG PakPapier"},null,"Buchungsabschnitt",{"$f":"IF(ISBLANK(INDIRECT(ADDRESS(A1*3,4,TRUE,TRUE,\"Übersicht\"))),\"\",INDIRECT(ADDRESS(A1*3,4,TRUE,TRUE,\"Übersicht\")))","v":2100237301}]
[{"$f":"IF(ISBLANK(INDIRECT(ADDRESS(A1*3,3,TRUE,TRUE,\"Übersicht\"))),\"\",INDIRECT(ADDRESS(A1*3,3,TRUE,TRUE,\"Übersicht\")))","v":"01.08.2018 - 31.01.2022"},null,"Budget",{"$f":"IF(ISBLANK(INDIRECT(ADDRESS(A1*3,5,TRUE,TRUE,\"Übersicht\"))),\"\",INDIRECT(ADDRESS(A1*3,5,TRUE,TRUE,\"Übersicht\")))","v":15000}]
[null,null,"Ausgaben",{"$f":"SUM(D9:D50)","v":202.29999999999998}]
[null,null,"Rest",{"$f":"D3-D4","v":14797.7}]
[]
[]
["Rechnungsdatum","Bestellartikel","Firma","Kosten in EUR"]
["2020-02-04","Technovit 7100 combipack","VWR",{"$f":"170*1.19","v":202.29999999999998}]

{"sheet":"DFG PmP","index":13,"n_rows":8,"n_cols":4,"rows_kept":8,"cut":false,"hidden":false,"merged":[]}
[12]
[{"$f":"IF(ISBLANK(INDIRECT(ADDRESS(A1*3,2,TRUE,TRUE,\"Übersicht\"))),\"\",INDIRECT(ADDRESS(A1*3,2,TRUE,TRUE,\"Übersicht\")))","v":"DFG PmP"},null,"Buchungsabschnitt",{"$f":"IF(ISBLANK(INDIRECT(ADDRESS(A1*3,4,TRUE,TRUE,\"Übersicht\"))),\"\",INDIRECT(ADDRESS(A1*3,4,TRUE,TRUE,\"Übersicht\")))","v":2100246401}]
[{"$f":"IF(ISBLANK(INDIRECT(ADDRESS(A1*3,3,TRUE,TRUE,\"Übersicht\"))),\"\",INDIRECT(ADDRESS(A1*3,3,TRUE,TRUE,\"Übersicht\")))","v":"01.12.2018-30.11.2021"},null,"Budget",{"$f":"IF(ISBLANK(INDIRECT(ADDRESS(A1*3,5,TRUE,TRUE,\"Übersicht\"))),\"\",INDIRECT(ADDRESS(A1*3,5,TRUE,TRUE,\"Übersicht\")))","v":16000}]
[null,null,"Ausgaben",{"$f":"SUM(D9:D50)","v":0}]
[null,null,"Rest",{"$f":"D3-D4","v":16000}]
[]
[]
["Rechnungsdatum","Bestellartikel","Firma","Kosten in EUR"]

{"sheet":"Bier","index":14,"n_rows":14,"n_cols":4,"rows_kept":14,"cut":false,"hidden":false,"merged":[]}
[13]
[{"$f":"IF(ISBLANK(INDIRECT(ADDRESS(A1*3,2,TRUE,TRUE,\"Übersicht\"))),\"\",INDIRECT(ADDRESS(A1*3,2,TRUE,TRUE,\"Übersicht\")))","v":"IGF Bier"},null,"Buchungsabschnitt",{"$f":"IF(ISBLANK(INDIRECT(ADDRESS(A1*3,4,TRUE,TRUE,\"Übersicht\"))),\"\",INDIRECT(ADDRESS(A1*3,4,TRUE,TRUE,\"Übersicht\")))","v":2100236801}]
[{"$f":"IF(ISBLANK(INDIRECT(ADDRESS(A1*3,3,TRUE,TRUE,\"Übersicht\"))),\"\",INDIRECT(ADDRESS(A1*3,3,TRUE,TRUE,\"Übersicht\")))","v":"01.11.2018-31.10.2020"},null,"Budget",{"$f":"IF(ISBLANK(INDIRECT(ADDRESS(A1*3,5,TRUE,TRUE,\"Übersicht\"))),\"\",INDIRECT(ADDRESS(A1*3,5,TRUE,TRUE,\"Übersicht\")))","v":25000}]
[null,null,"Ausgaben",{"$f":"SUM(D9:D50)","v":1587.0167999999999}]
[null,null,"Rest",{"$f":"D3-D4","v":23412.983199999999}]
[]
[]
["Rechnungsdatum","Bestellartikel","Firma","Kosten in EUR"]
["2020-01-30","Microcontroller","Mouser",{"$f":"100.44*1.19","v":119.52359999999999}]
["2020-01-31","Elektronikbauteile","Conrad",74.510000000000005]
["2020-02-06","Naphthola, etc","Sigma-Aldrich",192.42]
["2020-02-11","UV-LEDs","Roithner Lasertechnik",{"$f":"959.28*1.19","v":1141.5431999999998}]
["2020-02-25","Puhs-Buttons","SOS electronic",12.97]
["2020-03-10","Versandkosten","TNT",46.05]

{"sheet":"BMBF CTC","index":15,"n_rows":16,"n_cols":4,"rows_kept":16,"cut":false,"hidden":false,"merged":[]}
[14]
[{"$f":"IF(ISBLANK(INDIRECT(ADDRESS(A1*3,2,TRUE,TRUE,\"Übersicht\"))),\"\",INDIRECT(ADDRESS(A1*3,2,TRUE,TRUE,\"Übersicht\")))","v":"BMBF CTC"},null,"Buchungsabschnitt",{"$f":"IF(ISBLANK(INDIRECT(ADDRESS(A1*3,4,TRUE,TRUE,\"Übersicht\"))),\"\",INDIRECT(ADDRESS(A1*3,4,TRUE,TRUE,\"Übersicht\")))","v":2100288001}]
[{"$f":"IF(ISBLANK(INDIRECT(ADDRESS(A1*3,3,TRUE,TRUE,\"Übersicht\"))),\"\",INDIRECT(ADDRESS(A1*3,3,TRUE,TRUE,\"Übersicht\")))","v":"01.07.2019-30.06.2022"},null,"Budget",{"$f":"IF(ISBLANK(INDIRECT(ADDRESS(A1*3,5,TRUE,TRUE,\"Übersicht\"))),\"\",INDIRECT(ADDRESS(A1*3,5,TRUE,TRUE,\"Übersicht\")))","v":16000}]
[null,null,"Ausgaben",{"$f":"SUM(D9:D50)","v":1507.7108000000001}]
[null,null,"Rest",{"$f":"D3-D4","v":14492.289199999999}]
[]
[]
["Rechnungsdatum","Bestellartikel","Firma","Kosten in EUR"]
["2020-01-14","Swinnex Filter Holder","Sigma-Aldrich",203.72]
["2020-01-14","PCTE-Filter","Sterlitech",{"$f":"196.42","v":196.42}]
["2020-01-14","Streptavidin","Carl Roth",318.62]
["2020-02-04","Streptavidin-Cy5","VWR",{"$f":"187.57*1.19","v":223.20829999999998}]
["2020-02-25","Zollrechnung Sterlitech","DHL",49.66]
["2020-02-26","Streptavidin","Carl Roth",{"$f":"267.75*1.19","v":318.6225}]
["2020-02-26","Tygon Tubing","Kinesis",58.23]
["2020-03-04","9µm PMMA Beads","PolyAn",139.22999999999999]

{"sheet":"GenXPro","index":16,"n_rows":11,"n_cols":4,"rows_kept":11,"cut":false,"hidden":false,"merged":[]}
[15]
[{"$f":"IF(ISBLANK(INDIRECT(ADDRESS(A1*3,2,TRUE,TRUE,\"Übersicht\"))),\"\",INDIRECT(ADDRESS(A1*3,2,TRUE,TRUE,\"Übersicht\")))","v":"GenXPro"},null,"Buchungsabschnitt",{"$f":"IF(ISBLANK(INDIRECT(ADDRESS(A1*3,4,TRUE,TRUE,\"Übersicht\"))),\"\",INDIRECT(ADDRESS(A1*3,4,TRUE,TRUE,\"Übersicht\")))","v":2100276501}]
[{"$f":"IF(ISBLANK(INDIRECT(ADDRESS(A1*3,3,TRUE,TRUE,\"Übersicht\"))),\"\",INDIRECT(ADDRESS(A1*3,3,TRUE,TRUE,\"Übersicht\")))","v":"01.05.2019-30.04.2022"},null,"Budget",{"$f":"IF(ISBLANK(INDIRECT(ADDRESS(A1*3,5,TRUE,TRUE,\"Übersicht\"))),\"\",INDIRECT(ADDRESS(A1*3,5,TRUE,TRUE,\"Übersicht\")))","v":5000}]
[null,null,"Ausgaben",{"$f":"SUM(D9:D50)","v":199.465}]
[null,null,"Rest",{"$f":"D3-D4","v":4800.5349999999999}]
[]
[]
["Rechnungsdatum","Bestellartikel","Firma","Kosten in EUR"]
["2020-01-20","Versand an Genxpro","TNT",40]
["2020-01-20","SSD (für Ali)","Bechtle",{"$f":"69.5*1.19","v":82.704999999999998}]
["2020-02-10","Zymo-Spin IC Columns","Zymo Research",76.760000000000005]

{"sheet":"DFG DynWet","index":17,"n_rows":8,"n_cols":4,"rows_kept":8,"cut":false,"hidden":false,"merged":[]}
[16]
[{"$f":"IF(ISBLANK(INDIRECT(ADDRESS(A1*3,2,TRUE,TRUE,\"Übersicht\"))),\"\",INDIRECT(ADDRESS(A1*3,2,TRUE,TRUE,\"Übersicht\")))","v":"DFG Dynamic Wetting"},null,"Buchungsabschnitt",{"$f":"IF(ISBLANK(INDIRECT(ADDRESS(A1*3,4,TRUE,TRUE,\"Übersicht\"))),\"\",INDIRECT(ADDRESS(A1*3,4,TRUE,TRUE,\"Übersicht\")))","v":2100283401}]
[{"$f":"IF(ISBLANK(INDIRECT(ADDRESS(A1*3,3,TRUE,TRUE,\"Übersicht\"))),\"\",INDIRECT(ADDRESS(A1*3,3,TRUE,TRUE,\"Übersicht\")))","v":"01.10.2019-30.09.2022"},null,"Budget",{"$f":"IF(ISBLANK(INDIRECT(ADDRESS(A1*3,5,TRUE,TRUE,\"Übersicht\"))),\"\",INDIRECT(ADDRESS(A1*3,5,TRUE,TRUE,\"Übersicht\")))","v":2000}]
[null,null,"Ausgaben",{"$f":"SUM(D9:D50)","v":0}]
[null,null,"Rest",{"$f":"D3-D4","v":2000}]
[]
[]
["Rechnungsdatum","Bestellartikel","Firma","Kosten in EUR"]

{"sheet":"DFG Kommma","index":18,"n_rows":8,"n_cols":4,"rows_kept":8,"cut":false,"hidden":false,"merged":[]}
[17]
[{"$f":"IF(ISBLANK(INDIRECT(ADDRESS(A1*3,2,TRUE,TRUE,\"Übersicht\"))),\"\",INDIRECT(ADDRESS(A1*3,2,TRUE,TRUE,\"Übersicht\")))","v":"DFG Kommma"},null,"Buchungsabschnitt",{"$f":"IF(ISBLANK(INDIRECT(ADDRESS(A1*3,4,TRUE,TRUE,\"Übersicht\"))),\"\",INDIRECT(ADDRESS(A1*3,4,TRUE,TRUE,\"Übersicht\")))","v":2100295201}]
[{"$f":"IF(ISBLANK(INDIRECT(ADDRESS(A1*3,3,TRUE,TRUE,\"Übersicht\"))),\"\",INDIRECT(ADDRESS(A1*3,3,TRUE,TRUE,\"Übersicht\")))","v":"01.11.2019-30.10.2022"},null,"Budget",{"$f":"IF(ISBLANK(INDIRECT(ADDRESS(A1*3,5,TRUE,TRUE,\"Übersicht\"))),\"\",INDIRECT(ADDRESS(A1*3,5,TRUE,TRUE,\"Übersicht\")))","v":20000}]
[null,null,"Ausgaben",{"$f":"SUM(D9:D50)","v":0}]
[null,null,"Rest",{"$f":"D3-D4","v":20000}]
[]
[]
["Rechnungsdatum","Bestellartikel","Firma","Kosten in EUR"]

{"sheet":"Zim Microcoat 2","index":19,"n_rows":15,"n_cols":4,"rows_kept":15,"cut":false,"hidden":false,"merged":[]}
[18]
[{"$f":"IF(ISBLANK(INDIRECT(ADDRESS(A1*3,2,TRUE,TRUE,\"Übersicht\"))),\"\",INDIRECT(ADDRESS(A1*3,2,TRUE,TRUE,\"Übersicht\")))","v":"ZIM Microcoat II"},null,"Buchungsabschnitt",{"$f":"IF(ISBLANK(INDIRECT(ADDRESS(A1*3,4,TRUE,TRUE,\"Übersicht\"))),\"\",INDIRECT(ADDRESS(A1*3,4,TRUE,TRUE,\"Übersicht\")))","v":2100302101}]
[{"$f":"IF(ISBLANK(INDIRECT(ADDRESS(A1*3,3,TRUE,TRUE,\"Übersicht\"))),\"\",INDIRECT(ADDRESS(A1*3,3,TRUE,TRUE,\"Übersicht\")))","v":"01.10.2019-30.09.2022"},null,"Budget",{"$f":"IF(ISBLANK(INDIRECT(ADDRESS(A1*3,5,TRUE,TRUE,\"Übersicht\"))),\"\",INDIRECT(ADDRESS(A1*3,5,TRUE,TRUE,\"Übersicht\")))","v":5000}]
[null,null,"Ausgaben",{"$f":"SUM(D9:D50)","v":1306.8552}]
[null,null,"Rest",{"$f":"D3-D4","v":3693.1448}]
[]
[]
["Rechnungsdatum","Bestellartikel","Firma","Kosten in EUR"]
["2020-01-20","Versand an Microcoat","TNT",40]
["2020-02-27","Mikrotiterplatten, schwarz","Greiner BioOne",515.89]
["2020-03-10","Ziege IgG anti-Human IgM (µ)-Alexa Fluor 647","Dianova",{"$f":"210*1.19","v":249.89999999999998}]
["2020-03-10","Ismatec Pumpen Kasetten","Cole Palmer",{"$f":"128.08*1.19","v":152.4152}]
["2020-03-10","AffiniPure Rabbit Anti-Goat IgG (H+L)","Jackson Immuno",146.37]
["2020-03-10","Goat anti-Human IgG Fc Cross-Adsorbed Secondary Antibody, DyLight 550","Thermo Fisher",{"$f":"136*1.19","v":161.84}]
["2020-03-10","Versand an Microcoat","TNT",40.44]